bitfinex-derivatives/quotes_ETHF0:USTF0_20240924
["timestamp","ask_amount","ask_price","bid_price","bid_amount"]
[1727164718869,4.19598681,2648.1,2647.8,0.7356]
[1727164719062,1.36818681,2648.0,2647.8,0.3697]
[1727164719962,1.74584681,2648.0,2647.8,0.3697]
[1727164720168,1.36818681,2648.0,2647.8,0.3697]
[1727164720359,0.3614,2647.9,2647.8,0.3697]
[1727164721164,3.5692,2647.9,2647.8,0.3697]
[1727164722860,3.5692,2647.9,2647.8,0.74739]
[1727164723074,3.2078,2647.9,2647.8,0.74739]
[1727164723268,2.47046703,2648.1,2647.8,0.74739]
[1727164723470,0.98818681,2648.0,2647.9,0.367]
[1727164723771,0.98818681,2648.1,2647.9,0.367]
[1727164723971,0.98818681,2648.0,2647.9,0.367]
[1727164725972,0.98818681,2648.0,2647.9,0.74467]
[1727164726270,0.98818681,2648.0,2647.9,0.367]
[1727164726463,0.98818681,2648.0,2647.9,0.74467]
[1727164728471,0.98818681,2648.0,2647.9,0.367]
[1727164728879,0.98818681,2648.0,2647.9,0.74467]
[1727164729475,0.98818681,2648.0,2647.9,1.33504367]
[1727164730267,0.98818681,2648.1,2647.9,1.33504367]
[1727164730469,0.98818681,2648.1,2648.0,0.59033894]
[1727164731365,0.98818681,2648.1,2648.0,0.5903361]
[1727164732280,1.48228022,2648.1,2648.0,0.5903361]
[1727164733568,1.67119274,2648.1,2648.0,0.5903361]
[1727164733764,1.85992022,2648.1,2648.0,0.5903361]
[1727164733971,0.18891224,2648.1,2647.9,0.74467]
[1727164734173,1.483986,2648.0,2647.8,0.74738]
[1727164734373,0.98932414,2647.9,2647.8,0.74739]
[1727164734680,5.068786,2647.9,2647.8,0.96009306]
[1727164734881,5.451086,2647.9,2647.8,0.96009306]
[1727164736267,5.64001877,2647.9,2647.8,0.96009306]
[1727164736577,5.64073496,2647.9,2647.8,0.96009306]
[1727164736779,5.64072127,2647.9,2647.8,0.96009306]
[1727164737169,6.01839127,2647.9,2647.8,0.96009306]
[1727164737369,5.64072127,2647.9,2647.8,1.47812997]
[1727164737770,4.53370277,2647.9,2647.8,1.10842997]
[1727164738077,0.37769,2647.8,2647.6,1.37713044]
[1727164738272,2.05154152,2647.8,2647.7,0.51805469]
[1727164738468,2.05154152,2647.8,2647.7,1.46286394]
[1727164738469,2.05153668,2647.8,2647.7,1.46286394]
[1727164738672,5.56342764,2647.8,2647.7,1.10860626]
[1727164738875,7.31242072,2647.8,2647.3,0.98693044]
[1727164739072,4.69265806,2647.4,2647.3,0.75345]
[1727164739268,3.39673764,2647.4,2647.3,2.80701912]
[1727164739567,5.25414567,2647.4,2647.3,2.42929878]
[1727164739981,3.76936523,2647.4,2647.3,2.42929878]
[1727164740280,5.25419163,2647.4,2647.3,2.42929878]
[1727164740482,5.25416592,2647.4,2647.3,2.42929878]
[1727164740683,3.76936523,2647.4,2647.3,2.42929878]
[1727164741083,3.76936523,2647.4,2647.3,2.05364927]
[1727164741287,5.25380279,2647.4,2647.3,1.46311718]
[1727164741470,5.25380279,2647.4,2647.3,2.05365075]
[1727164741676,3.76936523,2647.4,2647.3,1.10879704]
[1727164742085,3.76936523,2647.4,2647.3,0.59053357]
[1727164742681,4.14710523,2647.4,2647.3,0.59053357]
[1727164742983,4.15516523,2647.4,2647.3,0.59053357]
[1727164743181,4.53290523,2647.4,2647.3,0.59053357]
[1727164743576,4.53290523,2647.4,2647.2,22.7]
[1727164743577,0.37776,2647.3,2647.2,22.7]
[1727164743782,0.37776,2647.3,2647.2,23.29055559]
[1727164743783,0.56672523,2647.3,2647.2,23.29055559]
[1727164744487,0.56672523,2647.3,2647.2,22.7]
[1727164744488,1.67239699,2647.3,2647.2,22.7]
[1727164744678,2.05015699,2647.3,2647.2,22.7]
[1727164745480,1.48341637,2647.3,2647.2,22.7]
[1727164746275,1.48341637,2647.3,2647.2,23.07777]
[1727164746478,1.48341637,2647.3,2647.2,24.29777]
[1727164746782,0.98858441,2647.3,2647.2,24.88828897]
[1727164746982,4.56898441,2647.4,2647.2,24.88828897]
[1727164747186,0.98858441,2647.3,2647.2,23.92]
[1727164747372,0.98858441,2647.3,2647.2,24.51050358]
[1727164747986,4.56898441,2647.4,2647.2,24.88827358]
[1727164748184,4.56898441,2647.4,2647.2,24.29777]
[1727164748780,4.56898441,2647.4,2647.2,23.92]
[1727164748981,4.19638441,2647.4,2647.2,23.92]
[1727164749177,4.19638441,2647.4,2647.3,1.59776]
[1727164749383,3.2078,2647.4,2647.3,1.59776]
[1727164749581,3.2078,2647.4,2647.3,2.77876316]
[1727164750884,3.2078,2647.4,2647.3,3.29616855]
[1727164751281,3.2078,2647.4,2647.3,6.55636316]
[1727164751485,3.2078,2647.4,2647.3,7.07376189]
[1727164752088,3.2078,2647.4,2647.3,5.9658527]
[1727164753189,3.2078,2647.4,2647.3,5.96582734]
[1727164753985,3.2078,2647.4,2647.3,2.18822734]
[1727164755594,3.2078,2647.4,2647.3,5.96582734]
[1727164758187,4.19638441,2647.6,2647.5,0.37773]
[1727164758901,4.19638441,2647.6,2647.5,0.77353]
[1727164759192,3.2078,2647.6,2647.5,0.77353]
[1727164759381,4.19628918,2647.6,2647.5,0.77353]
[1727164761288,4.19628918,2647.6,2647.5,0.3958]
[1727164761496,4.69053377,2647.6,2647.5,0.3958]
[1727164761795,4.69053377,2647.6,2647.5,0.77353]
[1727164762301,4.69053377,2647.6,2647.5,0.3958]
[1727164762595,3.2078,2647.6,2647.5,0.77353]
[1727164763190,3.2078,2647.6,2647.5,0.3958]
[1727164763389,4.69053377,2647.6,2647.5,0.3958]
[1727164763692,4.69053377,2647.6,2647.5,0.77353]
[1727164764194,4.69053377,2647.6,2647.5,0.3958]
[1727164764793,4.69053377,2647.6,2647.5,0.77353]
[1727164765095,4.1962456,2647.6,2647.5,0.77353]
[1727164770287,4.1962456,2647.6,2647.5,1.36399106]
[1727164770492,4.1962456,2647.6,2647.5,0.77353]
[1727164771297,4.1962456,2647.6,2647.5,1.36399308]
[1727164771498,4.1962456,2647.6,2647.5,1.36399324]
[1727164773997,4.1962456,2647.6,2647.5,0.77353]
[1727164774199,4.1962456,2647.6,2647.5,1.36398747]
[1727164774503,4.1962456,2647.6,2647.5,0.98625747]
[1727164774702,5.07773377,2647.6,2647.5,0.3958]
[1727164774999,5.07773377,2647.6,2647.5,0.4058]
[1727164775390,5.26668694,2647.6,2647.5,0.4058]
[1727164775591,5.26668694,2647.6,2647.5,0.99628022]
[1727164776100,5.07773377,2647.6,2647.5,1.37401022]
[1727164777591,5.07773377,2647.6,2647.5,8.77775543]
[1727164777592,0.98918077,2647.6,2647.5,8.77775543]
[1727164777789,0.98918077,2647.8,2647.7,0.3777]
[1727164777997,4.19698077,2647.9,2647.8,0.37769]
[1727164778203,4.19698077,2647.9,2647.8,3.22308543]
[1727164779499,4.19698077,2647.9,2647.8,3.61958543]
[1727164780392,0.98918077,2647.9,2647.8,5.07440377]
[1727164780596,1.84773377,2648.1,2647.8,5.07440377]
[1727164780597,0.98944386,2648.0,2647.8,2.69633362]
[1727164780809,0.98944386,2648.0,2647.9,1.59767]
[1727164780991,0.98944386,2648.0,2647.9,3.13257459]
[1727164781194,0.98944386,2648.0,2647.9,3.65049006]
[1727164781901,0.98944386,2648.0,2647.9,1.59767]
[1727164782095,0.98944386,2648.0,2647.9,3.65039444]
[1727164782305,1.35444386,2648.1,2648.0,0.37766]
[1727164782700,1.35444386,2648.1,2648.0,1.48585782]
[1727164784193,1.35444386,2648.1,2648.0,1.48567816]
[1727164784599,1.35444386,2648.1,2648.0,0.96798458]
[1727164785298,0.365,2648.1,2648.0,0.96798458]
[1727164786902,0.365,2648.1,2648.0,0.59032458]
[1727164787203,0.365,2648.1,2648.0,0.96798458]
[1727164787806,0.365,2648.1,2648.0,0.96798014]
[1727164791205,0.365,2648.1,2648.0,0.59032014]
[1727164791407,0.365,2648.1,2648.0,0.96798014]
[1727164791613,0.365,2648.1,2648.0,0.96798938]
[1727164791798,0.365,2648.1,2648.0,0.59032938]
[1727164792108,0.365,2648.1,2648.0,0.96798903]
[1727164792611,0.365,2648.1,2648.0,0.59032903]
[1727164793096,0.365,2648.1,2648.0,0.59032833]
[1727164797113,0.365,2648.1,2648.0,0.96798833]
[1727164798312,3.2078,2648.2,2648.1,0.37764]
[1727164798719,3.2078,2648.2,2648.1,0.77074]
[1727164798907,3.2078,2648.2,2648.1,1.36105686]
[1727164800114,3.2078,2648.2,2648.1,0.77074]
[1727164800310,3.2078,2648.2,2648.1,0.3931]
[1727164800510,3.2078,2648.2,2648.1,0.77074]
[1727164801427,0.7647,2648.3,2648.2,0.37763]
[1727164801620,0.7647,2648.3,2648.2,0.76783]
[1727164801812,0.3973,2648.3,2648.2,0.76783]
[1727164802015,0.3973,2648.3,2648.2,1.12873]
[1727164802320,0.3973,2648.3,2648.2,0.7511]
[1727164802715,0.3973,2648.3,2648.2,23.4511]
[1727164803821,3.6051,2648.3,2648.2,23.4511]
[1727164804017,4.59262131,2648.3,2648.2,23.0902]
[1727164804226,5.46399197,2648.3,2648.2,22.7]
[1727164804527,5.46399197,2648.3,2647.5,0.99829699]
[1727164804528,0.94415,2648.0,2647.5,0.99829699]
[1727164804820,0.3777,2647.7,2647.6,27.31528511]
[1727164805123,2.51268364,2647.9,2647.6,27.69299511]
[1727164805318,0.3777,2647.7,2647.6,26.7248753]
[1727164805522,3.2078,2647.7,2647.6,22.7]
[1727164805828,3.2078,2647.7,2647.6,23.29042569]
[1727164806120,3.2078,2647.7,2647.6,23.07771]
[1727164806720,3.2078,2647.7,2647.6,22.7]
[1727164806922,3.2078,2647.7,2647.6,23.07771]
[1727164807126,3.2078,2647.7,2647.6,22.7]
[1727164807312,3.2078,2647.7,2647.6,23.29043368]
[1727164807720,3.2078,2647.7,2647.6,22.7]
[1727164808522,4.19510364,2647.7,2647.5,0.01]
[1727164808931,0.37771,2647.6,2647.5,0.01]
[1727164809326,1.322,2647.6,2647.5,0.01]
[1727164809527,2.30930364,2647.6,2647.5,0.01]
[1727164810422,2.30930364,2647.6,2647.1,0.37778]
[1727164810423,0.94433,2647.5,2647.1,0.37778]
[1727164810626,3.2078,2647.2,2647.1,0.37778]
[1727164810927,3.58557,2647.2,2647.1,23.29054174]
[1727164811130,3.58557,2647.2,2647.1,22.7]
[1727164811529,4.53001,2647.2,2647.1,22.7]
[1727164812426,4.15224,2647.2,2646.8,0.37782]
[1727164812630,0.398,2647.1,2646.8,0.37782]
[1727164812829,0.3778,2647.0,2646.9,0.37781]
[1727164813034,0.3778,2647.0,2646.9,23.07781]
[1727164813328,0.3778,2647.0,2646.9,22.7]
[1727164815121,0.3778,2647.0,2646.7,0.98829699]
[1727164815122,0.94456,2646.9,2646.5,0.37787]
[1727164815421,3.2078,2646.6,2646.5,0.37787]
[1727164815739,3.58566,2646.6,2646.5,22.7]
[1727164816028,3.5732,2646.6,2646.5,26.4784]
[1727164816237,3.5732,2646.6,2646.5,26.85627]
[1727164816534,0.3654,2646.6,2646.5,26.85627]
[1727164816924,0.3654,2646.6,2646.5,23.07787]
[1727164817124,3.58563,2646.9,2646.6,0.37786]
[1727164817534,3.2078,2646.9,2646.7,0.74864]
[1727164817727,3.2078,2646.9,2646.7,0.3708]
[1727164817927,3.2078,2646.9,2646.7,0.74864]
[1727164818130,3.2078,2646.9,2646.7,0.3708]
[1727164818634,3.2078,2646.9,2646.7,0.7683]
[1727164819231,3.58561,2646.9,2646.7,0.7683]
[1727164819632,3.2078,2646.9,2646.7,0.7683]
[1727164819827,3.2078,2646.9,2646.8,0.75913]
[1727164823639,3.4728,2647.5,2647.2,0.37776]
[1727164823944,3.2078,2647.5,2647.3,0.7256]
[1727164824142,3.58553,2647.5,2647.3,0.7256]
[1727164824335,3.2078,2647.5,2647.3,0.7256]
[1727164824536,3.58553,2647.5,2647.3,0.7256]
[1727164824836,3.2078,2647.5,2647.3,0.7256]
[1727164827036,3.58553,2647.5,2647.3,0.7256]
[1727164827234,3.2078,2647.5,2647.3,0.7256]
[1727164828041,3.58553,2647.5,2647.3,0.7256]
[1727164828343,3.2078,2647.5,2647.3,0.7256]
[1727164828643,3.58553,2647.5,2647.3,0.7256]
[1727164829242,3.2078,2647.5,2647.3,0.7256]
[1727164829439,3.2078,2647.5,2647.3,1.10336]
[1727164829640,0.37775,2647.4,2646.7,1.38579699]
[1727164829843,0.37776,2647.3,2647.0,0.3778]
[1727164830051,0.3638,2647.2,2646.9,0.76511]
[1727164830240,1.10257,2647.2,2646.9,0.76511]
[1727164830541,0.7248,2647.2,2647.0,0.37779]
[1727164831343,0.7248,2647.2,2646.9,0.7651]
[1727164831549,0.7248,2647.2,2647.0,0.37779]
[1727164831847,3.58553,2647.5,2647.2,0.37777]
[1727164832143,3.2078,2647.5,2647.3,0.3637]
[1727164833548,3.2078,2647.5,2647.4,0.37774]
[1727164833743,3.2078,2647.5,2647.4,0.7308]
[1727164833944,3.2078,2647.5,2647.4,1.10854]
[1727164834443,0.3807,2647.7,2647.6,0.37771]
[1727164834650,0.3807,2647.7,2647.4,4.5084]
[1727164834651,7.6705,2648.0,2647.7,0.3777]
[1727164834840,4.35556,2648.0,2647.6,0.37771]
[1727164835038,4.35556,2648.0,2647.9,0.37767]
[1727164835039,3.2078,2648.0,2647.9,0.37767]
[1727164835347,3.2078,2648.0,2647.9,23.07767]
[1727164835845,3.2078,2648.0,2647.9,22.7]
[1727164836046,3.58546,2648.0,2647.9,22.7]
[1727164836438,3.58546,2648.0,2647.4,0.7308]
[1727164836939,3.58546,2648.0,2647.6,0.37771]
[1727164838639,3.2078,2648.0,2647.7,0.3777]
[1727164839140,3.2078,2648.0,2647.8,0.3887]
[1727164839342,9.25046496,2648.3,2647.9,0.37766]
[1727164839642,9.25046496,2648.3,2647.9,1.12716]
[1727164839643,8.87284496,2648.3,2647.9,1.12716]
[1727164839849,8.87284496,2648.3,2647.9,0.7495]
[1727164840052,8.87284496,2648.3,2647.9,1.12716]
[1727164840348,9.25046496,2648.3,2647.9,1.12716]
[1727164840650,3.2078,2648.0,2647.9,1.12716]
[1727164842049,6.04265496,2648.3,2647.9,1.12716]
[1727164842343,3.2078,2648.0,2647.9,1.12716]
[1727164843349,3.2078,2648.0,2647.9,0.7495]
[1727164843650,3.2078,2648.0,2647.9,0.37767]
[1727164845244,5.66504496,2648.3,2647.8,0.3887]
[1727164845245,5.66504496,2648.3,2648.2,0.37763]
[1727164845645,5.27564496,2648.3,2648.2,0.37763]
[1727164845951,3.2078,2648.4,2648.3,0.37761]
[1727164846153,3.2078,2648.4,2648.3,1.15371]
[1727164846341,3.2078,2648.4,2648.3,0.7761]
[1727164851451,0.3759,2648.7,2648.3,0.7761]
[1727164851652,0.3759,2648.7,2648.4,0.3916]
[1727164851847,0.3759,2648.7,2648.5,22.7]
[1727164852953,0.75346,2648.7,2648.5,22.7]
[1727164853456,0.3759,2648.7,2648.5,22.7]
[1727164853753,0.75346,2648.7,2648.5,22.7]
[1727164854350,0.37757,2648.6,2648.5,22.7]
[1727164854548,0.3759,2648.7,2648.5,22.7]
[1727164854549,0.75347,2648.7,2648.5,22.7]
[1727164856357,3.58537,2648.6,2648.5,22.7]
[1727164856658,3.2078,2648.6,2648.5,22.7]
[1727164857359,3.2078,2648.6,2647.8,0.088]
[1727164857360,6.9838,2648.6,2647.8,0.088]
[1727164857549,0.3759,2648.7,2647.9,0.7432]
[1727164857550,3.58545,2648.1,2647.9,0.7432]
[1727164857749,0.76586,2648.0,2647.9,0.3801]
[1727164857956,0.37767,2647.9,2647.8,22.7]
[1727164858155,0.37767,2647.9,2647.6,0.3631]
[1727164858456,0.37768,2647.9,2647.6,0.3631]
[1727164858663,1.1585,2648.0,2647.7,22.7]
[1727164858664,0.37769,2647.8,2647.7,22.7]
[1727164858958,3.58549,2647.8,2647.7,22.7]
[1727164859763,3.2078,2647.8,2647.7,22.7]
[1727164860062,3.58549,2647.8,2647.7,22.7]
[1727164861558,0.37773,2647.5,2647.4,0.7587]
[1727164861757,3.58553,2647.5,2647.4,0.7587]
[1727164862158,3.58553,2647.5,2647.4,23.4587]
[1727164862661,3.58553,2647.5,2647.0,0.74009145]
[1727164862662,0.37779,2647.1,2647.0,0.74009145]
[1727164862966,3.2078,2647.1,2646.9,0.46836747]
[1727164863260,3.9954,2647.4,2647.0,22.7]
[1727164863569,3.2078,2647.1,2647.0,22.7]
[1727164863965,3.2078,2647.1,2646.9,0.46836747]
[1727164864155,3.5856,2647.1,2646.9,0.46836747]
[1727164864362,0.3778,2647.0,2646.9,0.46836747]
[1727164864670,1.32231,2647.0,2646.9,0.46836747]
[1727164864961,1.32231,2647.0,2646.5,0.3929]
[1727164864962,0.37786,2646.6,2646.5,0.3929]
[1727164865261,3.2078,2646.6,2646.5,0.3929]
[1727164865960,3.58566,2646.6,2646.5,0.3929]
[1727164866165,3.2078,2646.6,2646.5,0.3929]
[1727164867061,3.2078,2647.1,2646.5,4.1713]
[1727164867263,0.37781,2647.0,2646.5,23.0929]
[1727164867460,3.2078,2647.2,2646.5,23.0929]
[1727164867767,3.58558,2647.2,2646.6,4.68592397]
[1727164867963,3.58558,2647.2,2646.6,4.30807397]
[1727164868162,3.58558,2647.2,2646.6,4.68593397]
[1727164868463,3.58558,2647.2,2646.7,3.109]
[1727164868662,3.58558,2647.2,2646.8,0.3646]
[1727164869069,3.58558,2647.2,2646.9,0.3895]
[1727164869263,3.58558,2647.2,2647.0,0.3701]
[1727164869462,0.37779,2647.1,2647.0,0.3701]
[1727164869669,3.58558,2647.2,2647.0,0.3701]
[1727164869864,0.37779,2647.1,2647.0,0.3701]
[1727164870068,3.2078,2647.2,2647.0,0.3701]
[1727164870263,3.58558,2647.2,2647.0,0.3701]
[1727164870964,3.2078,2647.2,2647.0,0.3701]
[1727164871161,3.58557,2647.2,2647.0,0.3701]
[1727164872465,3.2078,2647.2,2647.0,0.3701]
[1727164872965,3.58558,2647.2,2647.0,0.3701]
[1727164873871,3.58557,2647.2,2647.0,0.3701]
[1727164875162,3.2078,2647.2,2647.0,0.3701]
[1727164875364,3.58558,2647.2,2647.0,0.3701]
[1727164875565,3.2078,2647.2,2647.0,0.3701]
[1727164875966,3.58557,2647.2,2647.0,0.3701]
[1727164876367,3.2078,2647.2,2647.0,0.3701]
[1727164876575,3.58558,2647.2,2647.0,0.3701]
[1727164876776,3.2078,2647.2,2647.0,0.3701]
[1727164877165,3.2078,2647.3,2647.0,0.3701]
[1727164877573,3.2078,2647.3,2647.1,8.0140424]
[1727164877769,3.2078,2647.3,2647.1,4.2364424]
[1727164878075,3.2078,2647.3,2647.0,0.3701]
[1727164878076,0.37776,2647.3,2647.0,0.3701]
[1727164878270,3.2078,2647.5,2647.0,0.3701]
[1727164878469,0.37776,2647.3,2647.0,0.3701]
[1727164878676,0.3654,2647.4,2647.0,0.3701]
[1727164878677,0.37777,2647.2,2647.0,0.3701]
[1727164878975,0.37779,2647.1,2647.0,0.3701]
[1727164880679,3.2078,2647.2,2647.0,0.3701]
[1727164880680,3.58558,2647.2,2647.0,0.3701]
[1727164881066,3.2078,2647.1,2647.0,0.3701]
[1727164881780,3.58559,2647.1,2647.0,0.3701]
[1727164882271,0.37779,2647.1,2647.0,0.3701]
[1727164882974,0.3778,2647.0,2646.9,0.3895]
[1727164883768,4.15226,2647.2,2646.8,0.3646]
[1727164883987,0.94447,2647.1,2646.7,0.37784]
[1727164884180,0.37782,2646.9,2646.7,0.37784]
[1727164885668,0.37782,2646.9,2646.6,1.50615]
[1727164887175,0.37783,2646.9,2646.6,1.50615]
[1727164889973,0.37783,2646.9,2646.7,0.37784]
[1727164890175,0.77351,2647.0,2646.7,0.37784]
[1727164890374,0.393,2647.3,2646.6,1.1283]
[1727164890575,0.37775,2647.4,2647.1,0.37778]
[1727164890781,3.2078,2647.5,2647.2,1.1496]
[1727164890782,3.58554,2647.5,2647.2,1.1496]
[1727164891084,3.58554,2647.5,2647.2,1.52737]
[1727164891879,0.37774,2647.4,2647.2,1.52737]
[1727164892479,3.2078,2647.5,2647.2,1.52737]
[1727164892786,3.2078,2647.5,2647.4,0.37774]
[1727164893784,3.2078,2647.5,2647.2,1.52736]
[1727164894088,3.2078,2647.5,2647.3,0.37775]
[1727164894283,3.2078,2647.5,2647.2,1.1496]
[1727164894592,3.2078,2647.5,2647.3,0.37775]
[1727164897283,3.2078,2647.5,2647.2,1.52736]
[1727164897674,3.2078,2647.5,2647.3,0.37775]
[1727164897880,3.58553,2647.5,2647.2,1.52736]
[1727164898183,3.58553,2647.5,2647.3,0.37776]
[1727164898890,3.2078,2647.5,2647.2,1.52737]
[1727164899095,3.58553,2647.5,2647.3,0.37775]
[1727164899784,3.2078,2647.5,2647.4,0.37774]
[1727164899985,0.7533,2647.8,2647.5,0.37773]
[1727164900402,0.7533,2647.8,2647.6,23.0629]
[1727164900778,0.3777,2647.7,2647.6,23.0629]
[1727164900981,0.3756,2647.8,2647.6,23.0629]
[1727164900982,0.75329,2647.8,2647.6,23.0629]
[1727164901486,0.3777,2647.7,2647.6,23.0629]
[1727164903188,0.7533,2647.8,2647.6,23.0629]
[1727164903394,0.3777,2647.7,2647.6,23.0629]
[1727164903580,0.3756,2647.8,2647.6,23.44061]
[1727164903781,0.75329,2647.8,2647.6,23.44061]
[1727164903983,0.3756,2647.8,2647.7,0.3972]
[1727164904189,0.75329,2647.8,2647.7,0.3972]
[1727164904890,0.3756,2647.8,2647.7,0.3972]
[1727164905192,3.2078,2647.9,2647.8,0.37769]
[1727164905596,3.2078,2647.9,2647.8,1.95637577]
[1727164905987,3.2078,2647.9,2647.8,3.4813264]
[1727164906186,3.2078,2647.9,2647.8,1.95637577]
[1727164906390,3.2078,2647.9,2647.8,2.96388808]
[1727164906590,3.2078,2647.9,2647.8,1.95637577]
[1727164906795,3.2078,2647.9,2647.8,7.25378002]
[1727164907091,3.2078,2647.9,2647.8,6.25019213]
[1727164907388,3.2078,2647.9,2647.8,5.73317577]
[1727164907599,3.2078,2647.9,2647.8,5.73312309]
[1727164908094,0.39,2648.2,2648.0,0.37765]
[1727164908294,3.2078,2648.1,2648.0,0.37765]
[1727164909298,3.2078,2648.1,2647.7,1.77899699]
[1727164909592,3.2078,2648.1,2648.0,0.37766]
[1727164910597,3.2078,2648.1,2647.7,1.77899699]
[1727164910890,3.2078,2648.1,2648.0,0.37766]
[1727164911897,3.2078,2648.1,2647.7,1.77899699]
[1727164912395,3.58545,2648.1,2647.8,0.37768]
[1727164912690,0.37766,2648.0,2647.7,1.16839]
[1727164912991,0.37768,2647.9,2647.7,0.7907]
[1727164913498,4.15193,2648.1,2647.6,23.68829699]
[1727164913690,4.15193,2648.1,2647.5,3.2078]
[1727164913691,3.2078,2647.8,2647.5,0.98829699]
[1727164913999,3.2078,2647.8,2647.7,0.3777]
[1727164915393,3.2078,2648.1,2647.8,0.37768]
[1727164916388,3.58544,2648.1,2647.8,0.37768]
[1727164916595,0.37767,2648.0,2647.6,23.68829699]
[1727164916900,3.58546,2648.1,2647.8,0.37768]
[1727164917193,3.58546,2648.1,2647.6,22.7]
[1727164918094,4.19589934,2648.4,2647.8,3.2078]
[1727164918391,0.378,2648.4,2648.0,0.37765]
[1727164918594,0.75561,2648.4,2648.0,0.37765]
[1727164919596,0.75561,2648.4,2647.9,3.7957]
[1727164919798,0.75561,2648.4,2648.0,0.37765]
[1727164920296,0.75561,2648.4,2648.1,0.37764]
[1727164920692,0.37761,2648.3,2648.0,0.37765]
[1727164920987,0.75561,2648.4,2648.1,0.37764]
[1727164921191,0.75561,2648.4,2647.8,0.98829699]
[1727164921192,0.37765,2648.1,2647.8,0.37768]
[1727164921394,3.2078,2647.9,2647.7,0.7708]
[1727164921599,3.2078,2647.9,2647.6,23.0795]
[1727164921802,3.2078,2647.9,2647.6,23.4726]
[1727164922110,1.1741,2648.0,2647.7,0.37769]
[1727164922291,1.55176,2648.0,2647.7,0.37769]
[1727164922599,3.58548,2647.9,2647.6,23.85031]
[1727164922801,3.58548,2647.9,2647.6,23.4726]
[1727164923390,3.58548,2647.9,2647.6,22.7]
[1727164923391,3.2078,2647.9,2647.6,22.7]
[1727164923800,0.3777,2647.7,2647.4,0.37773]
[1727164924001,0.3777,2647.8,2647.5,0.37773]
[1727164924297,0.7855,2648.0,2647.8,0.37769]
[1727164924500,0.7855,2648.0,2647.6,22.7]
[1727164924694,0.7855,2648.0,2647.8,0.37768]
[1727164925302,0.7855,2648.0,2647.8,0.37769]
[1727164926001,3.2078,2648.2,2647.8,3.7768]
[1727164926297,3.58544,2648.2,2647.8,0.37768]
[1727164926491,3.2078,2648.2,2648.0,0.37766]
[1727164926698,3.2078,2648.2,2648.1,0.74744]
[1727164927101,3.2078,2648.2,2648.1,0.3698]
[1727164928201,3.2078,2648.2,2648.1,0.74744]
[1727164932112,0.3853,2648.6,2648.1,5.13409699]
[1727164932408,3.9607,2648.7,2648.2,0.9543496]
[1727164932599,4.33827,2648.7,2648.3,0.37761]
[1727164932798,3.9607,2648.7,2648.4,0.3776]
[1727164933616,4.33826,2648.7,2648.3,0.74021]
[1727164935097,3.9607,2648.7,2648.1,1.35809699]
[1727164935310,0.37759,2648.5,2648.2,0.59025934]
[1727164935507,0.37759,2648.5,2648.1,1.73573699]
[1727164935705,0.37759,2648.5,2648.2,0.59024973]
[1727164935902,0.37761,2648.3,2648.1,3.63829699]
[1727164936214,3.2078,2648.4,2648.1,3.63829699]
[1727164936215,0.76193,2648.2,2648.1,2.65]
[1727164936414,1.15793,2648.2,2648.1,2.65]
[1727164937419,4.93393,2648.2,2648.1,2.65]
[1727164937604,6.86610934,2648.2,2648.1,2.65]
[1727164937914,5.92202934,2648.2,2648.1,2.65]
[1727164939018,2.14602934,2648.2,2648.1,2.65]
[1727164939512,1.15793,2648.2,2648.1,2.65]
[1727164940418,2.14602934,2648.2,2648.1,2.65]
[1727164940606,1.15793,2648.2,2648.1,2.65]
[1727164940810,2.14602934,2648.2,2648.1,2.65]
[1727164944616,2.63888547,2648.2,2648.1,2.65]
[1727164944914,2.82781069,2648.2,2648.1,2.65]
[1727164945117,1.34685522,2648.2,2648.1,2.65]
[1727164946014,2.63967619,2648.2,2648.1,2.65]
[1727164946210,6.03156395,2648.8,2648.1,2.65]
[1727164946514,0.37763,2648.2,2648.1,2.65]
[1727164947918,1.36561717,2648.2,2648.1,2.65]
[1727164948118,1.36561717,2648.2,2648.1,3.7628]
[1727164948318,0.37763,2648.2,2648.1,5.34145258]
[1727164949320,1.36561717,2648.2,2648.1,3.97525559]
[1727164949522,1.75851717,2648.2,2648.1,3.97525559]
[1727164949722,1.75851717,2648.2,2648.1,4.96355258]
[1727164949925,1.75851717,2648.2,2648.1,3.97525559]
[1727164950217,1.75851717,2648.2,2648.1,3.24035559]
[1727164950618,0.77053,2648.2,2648.1,3.24035559]
[1727164950914,0.95944586,2648.2,2648.1,2.65]
[1727164951123,0.37766,2648.0,2647.9,2.65]
[1727164951512,0.37766,2648.0,2647.9,3.24041042]
[1727164951712,0.3929,2648.2,2647.9,3.24041521]
[1727164951918,0.37766,2648.0,2647.9,2.65]
[1727164952114,1.36555772,2648.0,2647.9,3.2404104]
[1727164954122,0.98789772,2648.0,2647.9,3.2404104]
[1727164954328,0.98789772,2648.1,2647.9,4.60636739]
[1727164954522,0.98789772,2648.1,2648.0,3.24038617]
[1727164954715,0.98789772,2648.2,2648.1,0.37764]
[1727164954920,0.98789772,2648.5,2648.1,9.58021324]
[1727164955119,4.19569772,2648.6,2648.4,3.63949775]
[1727164955424,4.19569772,2648.6,2648.5,0.59038617]
[1727164955425,0.98789772,2648.6,2648.5,0.59038617]
[1727164955612,0.98789772,2648.6,2648.4,4.00709775]
[1727164955924,0.98789772,2648.6,2648.5,0.59025978]
[1727164956116,0.98789772,2648.6,2648.5,0.95335978]
[1727164956922,0.98789772,2648.7,2648.5,0.95335978]
[1727164957215,0.98789772,2648.7,2648.6,2.65]
[1727164957522,0.98789772,2648.7,2648.6,3.0206]
[1727164957828,1.36545772,2648.7,2648.6,3.0206]
[1727164958117,0.98789772,2648.7,2648.6,3.0206]
[1727164958720,1.75284772,2648.8,2648.6,3.0206]
[1727164958921,0.98789772,2648.8,2648.6,3.0206]
[1727164959228,0.98789772,2648.9,2648.7,0.96776749]